bitfinex/quotes_ETHUSD_20250905
["timestamp","ask_amount","ask_price","bid_price","bid_amount"]
[1757031190289,0.2819,4305.8,4305.7,2.43850272]
[1757031190489,0.2819,4305.8,4305.7,6.44850272]
[1757031190690,0.5966,4305.8,4305.7,6.44850272]
[1757031190908,0.3647,4305.8,4305.7,6.44850272]
[1757031191109,0.3647,4305.8,4305.7,7.49681354]
[1757031193383,0.05,4305.8,4305.7,7.49681354]
[1757031194178,0.3621,4305.8,4305.7,7.49681354]
[1757031194577,0.3621,4305.8,4305.7,7.59681354]
[1757031196079,0.3621,4305.8,4305.7,3.58681354]
[1757031196379,0.3621,4305.8,4305.7,7.59581354]
[1757031197980,0.05,4305.8,4305.7,7.59581354]
[1757031198480,0.05,4305.8,4305.7,8.81131354]
[1757031199512,0.051,4305.8,4305.7,8.81131354]
[1757031200812,0.051,4305.8,4305.7,11.81131354]
[1757031201312,0.051,4305.8,4305.7,17.43112476]
[1757031202208,0.051,4305.8,4305.7,17.52420354]
[1757031206941,0.051,4305.8,4305.7,12.29970354]
[1757031207106,0.051,4305.8,4305.7,10.68689232]
[1757031207432,0.051,4305.8,4305.7,11.90239232]
[1757031208736,0.051,4305.8,4305.7,12.69439232]
[1757031208909,1e-08,4305.8,4305.7,12.69439232]
[1757031212959,0.001,4306.3,4305.7,12.69439232]
[1757031212960,0.001,4306.3,4305.8,3.792]
[1757031213142,0.001,4308.2,4306.4,2.3221252]
[1757031213316,0.001,4308.2,4305.8,6.45811602]
[1757031213317,5.61981122,4308.1,4307.2,2.32165861]
[1757031213519,6.12741122,4307.7,4307.3,0.1]
[1757031213721,5.61981122,4307.4,4306.8,4.005]
[1757031213922,5.61981122,4307.4,4306.9,4.005]
[1757031214126,0.4076,4307.3,4307.0,4.005]
[1757031214345,0.099,4307.1,4307.0,4.005]
[1757031214752,0.5059,4307.1,4307.0,4.005]
[1757031217147,0.025,4307.8,4307.1,2.32174781]
[1757031217364,0.025,4307.8,4307.2,4.004]
[1757031217648,0.025,4307.8,4307.4,2.3215861]
[1757031217941,0.099,4307.3,4306.9,0.2339]
[1757031218142,0.4069,4307.2,4307.1,2.32174781]
[1757031218334,0.5066,4307.2,4307.1,2.32174781]
[1757031218913,0.5066,4307.2,4307.1,4.004]
[1757031219110,6.12641122,4307.2,4307.1,4.004]
[1757031219314,6.12641122,4307.2,4306.2,0.69810059]
[1757031219510,5.61981122,4307.0,4305.9,2.32238091]
[1757031219743,5.61981122,4307.0,4306.8,5.715]
[1757031219947,0.5059,4306.9,4306.1,1.711]
[1757031220169,5.61981122,4306.2,4305.8,0.72315419]
[1757031220317,0.1012,4305.9,4305.8,0.025]
[1757031220832,0.5059,4305.9,4305.8,0.025]
[1757031221344,6.12571122,4305.9,4305.8,0.025]
[1757031222943,0.5059,4305.9,4305.8,0.025]
[1757031223166,0.6219,4305.9,4305.8,0.025]
[1757031223540,0.2172,4305.9,4305.8,0.025]
[1757031226269,0.6219,4305.9,4305.8,0.025]
[1757031227041,0.2172,4305.9,4305.8,0.025]
[1757031228551,2.49387629,4306.5,4305.8,0.025]
[1757031228552,4.004,4306.5,4305.8,0.025]
[1757031228758,0.116,4306.1,4305.8,2.34744879]
[1757031228958,0.099,4305.9,4305.8,2.34744879]
[1757031229154,0.099,4305.9,4305.8,0.025]
[1757031231267,0.116,4306.1,4305.8,0.025]
[1757031231472,0.0997,4305.9,4305.8,0.025]
[1757031233483,0.2329,4307.0,4305.8,4.8097]
[1757031233644,0.116,4306.5,4305.8,5.369]
[1757031233845,0.116,4306.5,4305.8,4.4292]
[1757031234373,0.116,4306.5,4305.8,0.025]
[1757031234374,0.099,4305.9,4305.8,0.025]
[1757031235270,0.116,4306.2,4305.8,0.7535]
[1757031235575,2.32194294,4306.8,4305.8,0.7535]
[1757031235576,0.116,4306.5,4305.9,3.37814618]
[1757031235980,0.116,4306.5,4306.1,2.32223503]
[1757031236151,0.116,4306.5,4306.1,6.32523503]
[1757031236341,0.116,4306.5,4306.2,2.32222399]
[1757031236747,0.116,4306.5,4306.1,4.003]
[1757031236947,0.116,4306.5,4306.4,2.3221252]
[1757031237170,0.116,4306.5,4306.4,2.6073252]
[1757031237568,0.116,4306.8,4306.4,3.0506252]
[1757031237779,0.116,4306.8,4306.5,2.32206913]
[1757031237974,0.116,4306.8,4306.5,2.76536913]
[1757031238285,0.116,4306.8,4306.6,2.32200965]
[1757031238593,0.116,4306.8,4306.7,2.32196345]
[1757031239163,3.001,4307.3,4306.7,3.05046345]
[1757031239384,0.116,4307.0,4306.8,2.32190637]
[1757031239688,0.116,4307.0,4306.7,0.7285]
[1757031240003,0.116,4307.0,4306.8,2.32190411]
[1757031240380,0.116,4307.0,4306.7,2.76525757]
[1757031240688,0.117,4307.3,4306.9,0.2852]
[1757031240857,0.117,4307.3,4307.0,3.26158154]
[1757031241054,0.117,4307.3,4307.1,0.4433]
[1757031241254,0.117,4307.3,4306.8,6.32385726]
[1757031241557,0.099,4307.1,4306.8,4.002]
[1757031241896,0.099,4307.1,4306.7,0.116]
[1757031242198,6.61155519,4306.8,4306.6,4.002]
[1757031242379,0.0997,4306.7,4306.3,4.002]
[1757031243301,0.0997,4306.7,4306.4,2.32211267]
[1757031243449,0.116,4306.8,4306.4,2.81861267]
[1757031243652,0.116,4306.8,4306.5,0.4433]
[1757031244480,0.099,4306.6,4306.3,4.002]
[1757031245294,0.02312688,4306.5,4306.3,4.002]
[1757031245459,0.0997,4306.4,4305.9,0.116]
[1757031245858,0.116,4306.0,4305.7,5.713]
[1757031246157,0.1005,4305.9,4305.7,5.713]
[1757031247971,0.116,4306.0,4305.9,2.32239485]
[1757031248176,0.116,4306.4,4306.0,2.32232763]
[1757031248367,0.116,4306.4,4306.3,0.2852]
[1757031249090,0.116,4306.4,4306.3,0.7249]
[1757031249310,0.116,4306.4,4306.3,1.2176]
[1757031249477,0.116,4306.8,4306.3,1.03919285]
[1757031249663,0.02312688,4306.7,4306.4,4.0]
[1757031249993,0.099,4306.5,4306.4,4.0]
[1757031250358,0.099,4306.5,4306.2,4.0]
[1757031250556,0.116,4306.4,4306.2,4.0]
[1757031251079,0.116,4306.4,4306.3,0.7924]
[1757031251282,0.116,4306.4,4306.3,3.55427913]
[1757031251481,0.116,4306.6,4306.3,3.55427913]
[1757031251787,0.116,4306.6,4306.2,4.0]
[1757031251788,0.272,4306.4,4306.2,4.0]
[1757031252304,0.116,4306.6,4306.2,4.0]
[1757031253096,0.116,4306.6,4306.5,0.2997]
[1757031253309,3.0,4307.0,4306.5,0.2997]
[1757031253609,3.0,4307.0,4305.9,2.32235705]
[1757031253610,0.099,4306.6,4306.4,4.0]
[1757031253819,6.32264036,4307.3,4306.5,1.2321]
[1757031253988,0.116,4306.7,4306.5,3.5541597]
[1757031254322,0.116,4306.7,4306.6,0.9324]
[1757031255309,0.116,4306.7,4306.6,1.2321]
[1757031255711,0.215,4306.7,4306.5,0.004]
[1757031258094,0.116,4306.7,4306.5,0.004]
[1757031258299,0.116,4306.7,4306.6,0.2997]
[1757031258498,0.116,4306.7,4306.6,0.7394]
[1757031258910,0.116,4306.7,4306.6,0.2997]
[1757031259106,0.116,4306.7,4306.5,0.4967]
[1757031259307,0.099,4306.6,4306.5,0.004]
[1757031259712,0.116,4306.7,4306.5,0.004]
[1757031261419,0.116,4306.7,4306.5,0.4437]
[1757031261804,0.116,4306.7,4306.6,3.55411736]
[1757031262723,0.116,4307.1,4306.6,3.55411736]
[1757031262925,0.116,4307.1,4306.7,4.9304]
[1757031263444,0.116,4307.1,4306.7,4.4907]
[1757031263632,0.116,4307.1,4306.8,0.4397]
[1757031263832,0.116,4307.1,4306.7,3.998]
[1757031265145,0.116,4307.1,4306.8,0.9324]
[1757031265314,0.116,4307.1,4307.0,0.2997]
[1757031265710,0.116,4307.1,4307.0,1.2321]
[1757031266108,0.116,4307.1,4307.0,3.55390171]
[1757031266924,0.116,4307.1,4307.0,7.55090171]
[1757031267211,0.001,4307.3,4307.0,7.55090171]
[1757031267212,0.117,4307.3,4307.1,2.32171313]
[1757031267444,0.117,4307.3,4307.1,3.25411313]
[1757031267623,0.117,4307.3,4307.2,0.2997]
[1757031267821,0.117,4307.3,4307.2,1.2321]
[1757031270251,0.117,4307.3,4307.0,3.997]
[1757031270618,0.117,4307.3,4307.2,0.2997]
[1757031271023,0.117,4307.3,4307.2,0.7394]
[1757031271812,0.117,4307.3,4307.2,3.5537939]
[1757031272015,0.001,4307.3,4307.2,3.5537939]
[1757031272544,0.001,4307.3,4307.2,7.5497939]
[1757031273143,0.001,4307.3,4307.2,5.2281]
[1757031273351,0.001,4307.3,4307.2,4.7354]
[1757031274051,0.001,4307.3,4307.2,5.2281]
[1757031274624,0.001,4307.3,4307.2,7.5497939]
[1757031275224,0.001,4307.3,4307.2,8.54855833]
[1757031275545,0.001,4307.3,4307.2,8.66455833]
[1757031279237,0.001,4307.3,4307.2,11.66455833]
[1757031281143,0.026,4307.8,4307.2,11.66455833]
[1757031281144,1e-08,4307.8,4307.7,2.32142442]
[1757031281376,1e-08,4307.8,4307.7,18.30933629]
[1757031281660,1e-08,4307.8,4307.7,18.97837961]
[1757031281859,1e-08,4307.8,4307.7,19.07141357]
[1757031284461,1e-08,4307.8,4307.7,19.86341357]
[1757031288958,0.09900001,4307.8,4307.7,2.53045838]
[1757031289175,0.09900001,4307.8,4307.7,6.31242442]
[1757031289384,1e-08,4307.8,4307.7,7.34691858]
[1757031289678,0.50580001,4307.8,4307.5,3.991]
[1757031290042,0.27290001,4307.8,4307.6,2.32147831]
[1757031290244,0.27290001,4307.8,4307.7,2.32142442]
[1757031290474,0.09970001,4307.8,4307.7,2.32142442]
[1757031290861,0.09970001,4307.8,4307.7,6.31242442]
[1757031291059,0.09970001,4307.8,4307.7,7.17813936]
[1757031291863,1e-08,4307.8,4307.7,8.40253936]
[1757031292288,1e-08,4307.8,4307.7,7.47993936]
[1757031292464,1e-08,4307.8,4307.7,7.17813936]
[1757031294998,0.09900001,4307.8,4307.7,7.17813936]
[1757031295574,1e-08,4307.8,4307.7,7.17813936]
[1757031297772,0.09900001,4307.8,4307.7,7.17813936]
[1757031298200,1e-08,4307.8,4307.7,7.17813936]
[1757031298410,1e-08,4307.8,4307.7,7.95163936]
[1757031298715,1e-08,4307.8,4307.7,8.40253936]
[1757031299113,1e-08,4307.8,4307.7,8.51853936]
[1757031299420,1e-08,4307.8,4307.7,8.06763936]
[1757031299618,1e-08,4307.8,4307.7,8.51853936]
[1757031300285,1e-08,4307.8,4307.7,7.29413936]
[1757031300911,0.09900001,4307.8,4307.7,7.29413936]
[1757031301215,0.09900001,4307.8,4307.7,6.42842442]
[1757031301983,1e-08,4307.8,4307.7,6.42842442]
[1757031302186,0.09900001,4307.8,4307.7,6.42842442]
[1757031302723,1e-08,4307.8,4307.7,7.18112442]
[1757031302917,1e-08,4307.8,4307.7,7.59735788]
[1757031303824,0.09900001,4307.8,4307.7,7.59735788]
[1757031304007,0.09900001,4307.8,4307.7,8.82175788]
[1757031304008,1e-08,4307.8,4307.7,8.82175788]
[1757031306592,1e-08,4307.8,4307.7,11.82175788]
[1757031306791,1e-08,4307.8,4307.7,12.61375788]
[1757031307024,1e-08,4307.8,4307.7,12.70678687]
[1757031307819,1e-08,4307.8,4307.7,18.31880265]
[1757031309528,1e-08,4307.8,4307.7,7.92378687]
[1757031309697,1e-08,4307.8,4307.7,9.42542442]
[1757031311526,0.27200001,4307.8,4307.7,6.42542442]
[1757031311929,1e-08,4307.8,4307.7,6.42542442]
[1757031313119,1e-08,4307.8,4307.7,14.0292402]
[1757031313326,1e-08,4307.8,4307.7,14.12227157]
[1757031313505,1e-08,4307.8,4307.7,15.93814975]
[1757031314332,1e-08,4307.8,4307.7,18.93814975]
[1757031316027,1e-08,4307.8,4307.7,8.33333397]
[1757031316202,1e-08,4307.8,4307.7,8.2403026]
[1757031316808,1e-08,4307.8,4307.7,8.9786026]
[1757031317807,0.09900001,4307.8,4307.7,2.43742442]
[1757031318043,0.09900001,4307.8,4307.7,6.42342442]
[1757031318850,1e-08,4307.8,4307.7,6.42342442]
[1757031319007,1e-08,4307.8,4307.7,12.3241402]
[1757031319211,1e-08,4307.8,4307.7,12.7737402]
[1757031319447,1e-08,4307.8,4307.7,14.50091685]
[1757031320963,1e-08,4307.8,4307.7,14.96241685]
[1757031321329,0.001,4308.3,4307.7,24.36643263]
[1757031321330,1e-08,4308.3,4307.7,24.36643263]
[1757031321537,1e-08,4308.3,4308.2,10.93317078]
[1757031321848,1e-08,4308.3,4308.2,15.03517078]
[1757031322033,1e-08,4308.3,4308.2,16.23497078]
[1757031322215,1e-08,4308.3,4308.2,16.32799414]
[1757031323428,1e-08,4308.3,4308.2,10.71597836]
[1757031323667,1e-08,4308.3,4308.2,12.01969991]
[1757031325262,0.4076,4311.2,4310.7,2.31980884]
[1757031325566,2.31970159,4310.9,4309.4,1.71]
[1757031325752,0.02312688,4311.1,4309.4,1.71]
[1757031325753,0.272,4309.9,4309.7,2.43629742]
[1757031325929,0.272,4309.9,4309.7,0.116]
[1757031326258,0.272,4309.9,4307.8,2.71750797]
[1757031326259,0.001,4308.3,4308.2,2.321155]
[1757031326460,0.2703,4308.3,4308.2,2.321155]
[1757031330071,0.2703,4308.3,4308.1,3.993]
[1757031330588,0.2356,4308.2,4308.1,3.993]
[1757031330787,0.5022,4308.2,4308.1,3.993]
[1757031330947,0.2666,4308.2,4308.1,3.993]
[1757031332169,0.5048,4308.2,4307.8,4.016]
[1757031332338,0.2382,4308.1,4307.8,4.016]
[1757031332541,0.264,4307.9,4307.8,0.025]
[1757031332786,5.84924353,4307.9,4307.8,0.025]
[1757031333079,5.82611665,4307.9,4307.8,0.025]
[1757031333787,3.4969,4307.9,4307.8,0.025]
[1757031334080,3.5048,4307.9,4307.8,0.025]
[1757031336103,3.38,4307.9,4307.8,0.025]
[1757031336290,0.264,4307.9,4307.8,0.025]
[1757031338786,0.53411654,4307.9,4307.8,0.025]
[1757031338974,2.82611665,4307.9,4307.8,0.025]
[1757031339177,5.82611665,4307.9,4307.8,0.025]
[1757031339681,21.56733339,4307.9,4307.8,0.025]
[1757031344110,21.56733339,4307.9,4307.8,0.029]
[1757031346011,25.55433339,4307.9,4307.8,0.029]
[1757031347812,25.54643339,4307.9,4307.8,0.029]
[1757031348013,25.55433339,4307.9,4307.8,0.029]
[1757031349509,21.56733339,4307.9,4307.8,0.029]
[1757031349710,25.55433339,4307.9,4307.8,0.029]
[1757031350598,21.56733339,4307.9,4307.8,0.029]
[1757031350927,25.55433339,4307.9,4307.8,0.029]
[1757031351518,25.55433339,4307.9,4307.8,1e-08]
[1757031353707,25.54643339,4307.9,4307.8,1e-08]
[1757031353908,10.36431665,4307.9,4307.8,1e-08]
[1757031354400,10.60511665,4307.9,4307.8,1e-08]
[1757031356235,10.36431665,4307.9,4307.8,1e-08]
[1757031357426,9.42431665,4307.9,4307.8,0.30060001]
[1757031357737,9.42431665,4307.9,4307.8,1e-08]
[1757031358034,10.21631665,4307.9,4307.8,1e-08]
[1757031358223,10.47771665,4307.9,4307.8,1e-08]
[1757031359338,6.22931665,4307.9,4307.8,1e-08]
[1757031359538,10.21631665,4307.9,4307.8,1e-08]
[1757031360441,10.21631665,4307.9,4307.8,1.24100001]
[1757031360843,2.1826,4308.1,4307.8,1.24100001]
[1757031361042,0.116,4307.9,4307.8,0.30060001]
[1757031361230,3.116,4307.9,4307.8,0.30060001]
[1757031361620,3.116,4307.9,4307.8,1.24100001]
[1757031361817,0.116,4307.9,4307.8,1.24100001]
[1757031362544,4.103,4307.9,4307.8,1.24100001]
[1757031363740,4.103,4308.0,4307.8,1.24100001]
[1757031364121,7.103,4308.0,4307.9,0.9404]
[1757031364447,7.103,4308.0,4307.9,1.241]
[1757031365844,3.116,4308.0,4307.9,1.241]
[1757031366046,0.116,4308.0,4307.9,1.241]
[1757031368142,0.13912688,4308.0,4307.8,1e-08]
[1757031368342,4.102,4308.0,4307.9,1.241]
[1757031369053,0.116,4308.0,4307.9,1.241]
[1757031369254,0.116,4308.0,4307.9,3.56231665]
[1757031369464,0.001,4308.3,4308.1,2.32120451]
[1757031369752,0.001,4308.3,4307.9,3.56231665]
[1757031369753,0.001,4308.3,4308.0,0.9332]
[1757031369949,0.001,4308.3,4308.1,2.32120303]
[1757031370151,0.001,4308.3,4308.2,0.2868]
[1757031370553,0.001,4308.3,4308.2,3.541155]
[1757031371023,0.001,4308.3,4308.2,3.657155]
[1757031371852,0.001,4308.3,4308.2,1.336]
[1757031372056,0.001,4308.3,4308.2,1.22]
[1757031373657,0.001,4308.3,4308.2,3.663155]
[1757031373856,0.116,4308.9,4308.5,2.32098546]
[1757031374057,3.02312688,4309.0,4308.3,0.9332]
[1757031374262,0.116,4308.4,4308.3,0.9332]
[1757031374475,0.116,4308.4,4308.3,1.22]
[1757031375244,0.001,4309.2,4308.3,1.22]
[1757031375245,0.116,4308.6,4308.3,3.66310113]
[1757031375450,0.116,4308.6,4308.4,3.25424583]
[1757031375770,3.001,4309.2,4308.5,2.32099338]
[1757031375968,0.142,4308.8,4308.7,0.2868]
[1757031376370,0.142,4308.8,4308.7,1.22]
[1757031381069,0.142,4308.8,4308.7,0.7851]
[1757031381264,0.142,4308.8,4308.7,1.22]
[1757031381877,0.142,4308.8,4308.7,0.7851]
[1757031382186,0.142,4308.8,4308.7,1.22]
[1757031382978,0.4113,4308.8,4306.8,2.35086694]
[1757031383154,0.116,4308.4,4307.8,0.93320001]
[1757031383360,0.116,4308.4,4307.8,3.25456432]
[1757031383559,0.116,4308.4,4308.3,0.2868]
[1757031383959,0.116,4308.4,4308.3,0.7851]
[1757031384167,0.116,4308.4,4308.3,1.22]
[1757031384369,0.116,4308.4,4307.9,0.4349]
[1757031384603,0.116,4308.4,4308.0,0.9332]
[1757031384778,0.116,4308.4,4308.3,0.2868]
[1757031385175,0.116,4308.4,4308.3,1.22]
[1757031385570,0.116,4308.6,4308.3,3.54109659]
[1757031385783,0.116,4308.6,4308.4,0.9332]
[1757031385993,0.116,4308.6,4308.4,3.25423761]
[1757031386168,0.116,4308.6,4308.5,1.22]
[1757031389909,0.116,4308.6,4308.2,4.4189]
[1757031390111,0.116,4308.6,4308.3,0.9332]
[1757031390480,0.099,4308.4,4308.0,3.983]
[1757031390692,0.116,4308.1,4308.0,3.983]
[1757031390887,0.116,4308.1,4308.0,4.2698]
[1757031391113,0.116,4308.1,4308.0,5.203]
[1757031391485,0.026,4308.8,4308.0,5.95543091]
[1757031391810,0.116,4308.4,4308.1,3.25439983]
[1757031392011,0.116,4308.4,4308.3,0.2868]
[1757031392579,0.116,4308.6,4308.4,2.32104162]
[1757031392784,0.116,4308.6,4308.5,1.22]
[1757031395213,0.026,4308.8,4308.6,2.32093359]
[1757031395401,0.142,4308.8,4308.6,2.32093359]
[1757031395615,0.142,4308.8,4308.7,3.54088564]
[1757031398186,0.142,4308.8,4308.7,3.54088564]
[1757031398497,0.142,4308.8,4308.7,7.52288564]
[1757031400130,0.026,4308.8,4308.7,7.52288564]
[1757031400333,0.026,4308.8,4308.7,8.54268128]
[1757031402834,0.026,4308.8,4308.7,8.10778128]
[1757031403007,0.026,4308.8,4308.7,8.53668128]
[1757031403202,0.026,4308.8,4308.7,5.28859564]
[1757031403417,0.026,4308.8,4308.7,5.00179564]
[1757031403934,0.026,4308.8,4308.7,5.30939564]
[1757031405220,0.026,4308.8,4308.7,8.51568128]
[1757031407550,0.026,4308.8,4308.7,15.23636149]
[1757031408645,0.001,4309.2,4309.1,2.3206702]
[1757031408852,0.001,4309.2,4309.1,6.4408769]
[1757031409046,0.001,4309.2,4309.1,7.6106702]
[1757031410851,0.001,4309.2,4309.1,7.70368945]
[1757031414746,0.001,4309.2,4309.1,10.70368945]
[1757031414970,0.001,4309.2,4309.1,12.84323506]
[1757031417196,0.001,4309.2,4309.1,13.63523506]
[1757031418154,1e-08,4309.7,4309.2,6.11261635]
[1757031418373,1e-08,4309.7,4309.6,12.04008117]
[1757031418584,1e-08,4309.7,4309.6,19.12496071]
[1757031418785,1e-08,4309.7,4309.6,20.01036071]
[1757031418980,1e-08,4309.7,4309.6,20.10334839]
[1757031419996,1e-08,4309.7,4309.6,8.72966818]
[1757031420163,1e-08,4309.7,4309.6,12.70766818]
[1757031420862,1e-08,4309.7,4309.6,19.19534839]
[1757031421401,1e-08,4309.7,4309.6,20.15796312]
[1757031421609,1e-08,4309.7,4309.6,19.15716743]
[1757031426433,0.025,4311.8,4310.5,3.11191648]
[1757031426434,1e-08,4310.6,4310.5,3.11191648]
[1757031426595,1e-08,4310.6,4310.5,14.71199265]
[1757031426796,1e-08,4310.6,4310.5,15.90499265]
[1757031427616,1e-08,4310.6,4310.5,15.99795785]
[1757031429923,1e-08,4310.6,4310.5,18.99795785]
[1757031431001,1e-08,4310.6,4310.5,19.11395785]
[1757031431912,0.197,4311.8,4311.7,2.31927082]
[1757031432131,0.197,4311.8,4311.7,6.29427082]
[1757031432332,0.296,4311.8,4311.7,6.29427082]
[1757031432919,3.792,4311.7,4309.2,1.71]
[1757031433217,0.116,4310.6,4310.0,0.116]
[1757031433434,0.116,4310.6,4309.3,1.71]
[1757031433435,0.099,4310.1,4309.3,1.71]
[1757031433639,0.099,4310.1,4310.0,0.116]
[1757031433812,0.099,4310.1,4310.0,4.091]
[1757031434241,0.5042,4310.1,4310.0,4.091]
[1757031439248,0.099,4310.1,4310.0,4.091]
[1757031439754,0.2703,4310.1,4310.0,4.091]
[1757031440349,0.099,4310.1,4310.0,4.091]
[1757031443670,0.215,4310.1,4310.0,3.974]
[1757031443828,0.9126298,4310.1,4310.0,3.974]
[1757031444230,6.92071432,4310.1,4310.0,3.974]
[1757031444431,3.0,4310.0,4309.8,0.025]
[1757031444655,2.34336632,4309.9,4309.8,0.025]
[1757031444979,5.84926632,4309.9,4309.8,0.025]
[1757031445267,5.82613944,4309.9,4309.8,0.025]
[1757031446336,5.82613944,4309.9,4309.8,0.029]
[1757031448137,3.2693,4309.9,4309.8,0.029]
[1757031448342,8.87218452,4309.9,4309.8,0.029]
[1757031450066,0.69774014,4310.0,4309.8,0.029]
[1757031450272,0.116,4310.2,4309.8,0.3141]
[1757031450469,0.116,4310.2,4309.8,0.762]
[1757031450666,0.116,4310.2,4309.8,1.2583]
[1757031450874,0.116,4310.2,4309.9,0.4479]
[1757031451453,0.116,4310.2,4309.8,0.029]
[1757031453201,0.116,4310.2,4309.9,2.7681383]
[1757031453491,0.116,4310.2,4310.0,2.32017096]
[1757031453701,0.116,4310.2,4310.0,2.76807096]
[1757031454284,0.116,4310.2,4310.1,0.733]
[1757031455089,0.69762332,4310.5,4310.1,0.2851]
[1757031455285,0.116,4310.4,4310.1,0.7814]
[1757031455488,0.116,4310.4,4310.2,3.26426508]
[1757031455689,0.117,4310.8,4310.4,2.31992495]
[1757031456004,0.117,4310.8,4310.6,2.31985297]
[1757031456297,0.117,4310.8,4310.5,0.4479]
[1757031456786,5.60288452,4310.7,4310.5,0.4479]
[1757031456970,5.60288452,4310.7,4310.3,2.32000642]
[1757031457173,0.117,4310.8,4310.6,2.60496266]
[1757031457583,0.117,4310.8,4310.6,0.2851]
[1757031457788,0.117,4310.8,4310.5,2.31991524]
[1757031457972,0.117,4310.8,4310.4,0.9442]
[1757031458172,0.117,4310.8,4310.4,3.26416249]
[1757031458380,0.117,4310.8,4310.4,3.26416894]
[1757031458579,0.099,4310.5,4310.2,0.116]
[1757031458784,5.60288452,4310.3,4310.0,3.973]
[1757031460494,5.60288452,4310.3,4309.9,0.116]
[1757031460673,5.71888452,4310.0,4309.8,0.029]
[1757031461079,0.1004,4309.9,4309.8,0.029]
[1757031461585,5.71888452,4310.0,4309.8,0.029]
[1757031463977,0.099,4309.9,4309.8,0.029]
[1757031464270,5.71888452,4310.0,4309.8,0.029]
[1757031465109,0.099,4309.9,4309.8,0.029]
[1757031465888,5.71888452,4310.0,4309.8,0.029]
[1757031466079,0.116,4310.0,4309.8,0.3188]
[1757031466279,0.116,4310.0,4309.8,1.261]
[1757031466609,0.099,4309.9,4309.8,0.029]
[1757031467112,0.116,4310.0,4309.8,0.029]
[1757031468011,15.39932396,4309.9,4309.8,0.029]
[1757031468504,2.32050865,4309.4,4309.3,0.004]
[1757031468707,14.91852005,4309.4,4309.3,0.004]
[1757031468905,15.39859317,4309.4,4309.3,0.004]
[1757031469217,15.16469317,4309.4,4309.3,0.004]
[1757031469717,12.84418452,4309.4,4309.3,0.004]
[1757031471219,12.57388452,4309.4,4309.3,0.004]
[1757031471392,6.971,4309.4,4309.3,0.004]
[1757031471911,7.2403,4309.4,4309.3,0.004]
[1757031472117,3.2693,4309.4,4309.3,0.004]
[1757031472412,7.2403,4309.4,4309.3,0.004]
[1757031472997,6.971,4309.4,4309.3,0.004]
[1757031474016,3.0,4309.4,4309.3,0.2938]
[1757031474204,3.0,4309.4,4309.3,1.236]
[1757031476089,3.0,4309.4,4309.3,0.004]
[1757031476604,3.099,4309.4,4309.3,0.004]
[1757031477992,5.55863553,4309.4,4309.3,0.004]
[1757031478187,5.53550865,4309.4,4309.3,0.004]
[1757031478502,5.94070865,4309.4,4309.3,0.004]
[1757031478718,5.53550865,4309.4,4309.3,0.004]
[1757031479314,6.56140865,4309.4,4309.3,0.004]
[1757031479611,6.73270865,4309.4,4309.3,0.004]
[1757031480453,3.11272406,4309.0,4308.9,0.004]
[1757031480728,17.31881629,4308.4,4308.3,0.004]
[1757031480927,2.32131665,4307.9,4307.8,0.02500001]
[1757031481119,12.03332805,4307.9,4307.8,0.02500001]
[1757031481320,15.11060117,4307.9,4307.8,0.02500001]
[1757031481517,22.15612827,4307.9,4307.8,0.02500001]
[1757031481706,24.47744492,4307.9,4307.8,0.02500001]
[1757031481912,22.15612827,4307.9,4307.8,0.02500001]
[1757031482514,24.47744492,4307.9,4307.8,0.02500001]
[1757031483031,3.116,4307.9,4307.8,0.76180001]
[1757031483233,7.086,4307.9,4307.8,0.02500001]
[1757031484132,7.086,4307.9,4307.8,0.31480001]
[1757031484649,0.116,4307.9,4307.8,1.25700001]
[1757031485224,0.116,4307.9,4307.8,3.57837054]
[1757031485742,4.086,4308.4,4308.0,2.32121467]
[1757031485941,3.116,4308.4,4308.1,0.9422]
[1757031486141,3.116,4308.4,4308.3,0.2898]
[1757031486343,3.116,4308.4,4308.3,1.232]
[1757031487142,2.32072893,4309.0,4308.3,1.232]
[1757031487143,11.19988023,4310.1,4308.3,3.55310113]
[1757031487324,3.742,4309.7,4308.4,0.96541047]
[1757031487525,3.97,4309.6,4308.5,0.9422]
[1757031487746,3.97,4309.6,4309.5,0.2898]
[1757031488069,3.0,4309.7,4309.5,0.7368]
[1757031488359,0.116,4309.6,4309.5,0.2898]
[1757031488520,0.025,4309.8,4309.5,0.2898]
[1757031488943,0.025,4309.8,4309.7,2.32034712]
[1757031489464,0.025,4309.8,4309.7,3.56794712]
[1757031491955,0.025,4309.8,4309.7,0.4867]
[1757031492120,0.025,4309.8,4309.7,0.3106]
[1757031492323,0.025,4309.8,4309.7,3.56794712]
[1757031493241,0.025,4309.8,4309.7,4.16838638]
[1757031493849,0.025,4309.8,4309.6,2.43639357]
[1757031494048,0.025,4309.8,4309.7,0.7609]
[1757031494249,0.025,4309.8,4309.6,2.32039357]
[1757031494552,0.025,4309.8,4309.6,2.77069357]
[1757031494757,0.025,4309.8,4309.4,4.085]
[1757031494924,0.025,4309.8,4309.4,3.969]
[1757031495120,0.141,4309.8,4309.7,0.3106]
[1757031495655,0.141,4309.8,4309.5,0.937]
[1757031495840,0.141,4309.8,4309.5,3.25740429]